Cogmind - Beta 16 @@@ ROGUE MODE // 2025.12.07 @ 14:41:42 Player: BlobtheGreat Result: Destroyed self via exploding Power Conduit Performance ------------- Evolutions (5) 2500 Regions Visited (10) 2000 Robots Destroyed (95) 475 Value Destroyed (3002) 3002 Prototype IDs (33) 660 Alien Tech Used (0) 0 Bonus (3386) 3386 TOTAL SCORE: 12023 Bonus ------- High Alert Combat Kills 96 Follower Combat Kills 190 Delivered SUBCON Basin 2000 Registered with UFD 300 Met Optimus in HQ 500 Met Data Miner 300 Cogmind --------- Core Integrity 0/1000 Matter 99/300 Energy 16/100 System Corruption 11% Temperature Cool (12) Movement Hovering (60) Location -5/Factory Parts ------- > --- POWER (2) -------- (None) > --- PROPULSION (4) --- Antigrav System > --- UTILITY (9) ------ Authchip [Propulsion] Authchip [Propulsion] > --- WEAPON (2) ------- Makeshift Axe Power Sword > --- INVENTORY (5) ---- Light Fission Core Improved Titanium Leg Precision Matter Filter Improved Remote Datajack Peak State ------------ > --- POWER ------------ Light Fission Core Meta Core > --- PROPULSION ------- Light Treads Improved Medium Treads Overtuned Huge Scrapsphere > --- UTILITY ---------- Scrap Suit Advanced Heat Sink Advanced Heat Sink Huge Storage Unit Advanced Signal Interpreter Makeshift Light Armor Plating Layered Medium Armor Plating Tech Extrapolator > --- WEAPON ----------- Overtuned Beamcaster Overtuned Barrage Gun > --- INVENTORY -------- Light Nuclear Core Improved Titanium Leg Improved Titanium Leg Improved Titanium Leg Overtuned Scrapsphere Scrap Suit Large Storage Unit Microactuators Improved Light Armor Plating Improved Hacking Suite Authchip [Propulsion] Authchip [Propulsion] Authchip [Device] Authchip [Weapon] Machine Rigger Overtuned Coil Gun Heavy Rocket Launcher Rocket Array CPS Tube CPS Tube Multitool Makeshift Axe DRS Beacon Botcube [Rating: 94] Favorites ----------- Power Meta Core Engine Ion Engine Power Core Meta Core Propulsion Light Treads Treads Light Treads Leg Carbon-fiber Leg Wheel Overtuned Huge Scrapsphere Hover Unit Antigrav System Utility Makeshift Light Armor Plating Device Subdweller Optics Storage Huge Storage Unit Processor Tech Extrapolator Hackware Improved Hacking Suite Protection Makeshift Light Armor Plating Weapon Subdweller Laser Energy Gun Subdweller Laser Ballistic Gun Light Assault Rifle Ballistic Cannon Battle Cannon Launcher Rocket Array Special Weapon Mining Laser Impact Weapon Mace Slashing Weapon Phasing Sabre Build | -11 -10 -10 -8 -8 -6 -6 -6 -6 -5 -5 ------- Run | Yrd Mat Sub Rec Scr Fac Low Low Dat Pro Fac Slots Evolved 10 | . . . . . 8 . . . . 2 Power 1 | . . . . . 1 . . . . . Propulsion 2 | . . . . . 1 . . . . 1 Utility 7 | . . . . . 6 . . . . 1 Weapon . | . . . . . . . . . . . Parts Attached 66 | 7 2 15 2 6 13 5 . . 6 10 Power 6 | 1 . 1 . . 2 1 . . . 1 Engine 1 | 1 . . . . . . . . . . Core 5 | . . 1 . . 2 1 . . . 1 Reactor . | . . . . . . . . . . . Propulsion 10 | 2 . 3 . 1 2 . . . 1 1 Treads 6 | 2 . 3 . . 1 . . . . . Leg 1 | . . . . 1 . . . . . . Wheel 2 | . . . . . 1 . . . 1 . Hover 1 | . . . . . . . . . . 1 Flight . | . . . . . . . . . . . Utility 30 | 2 1 3 2 2 7 3 . . 4 6 Device 14 | 1 . 1 . . 4 2 . . 3 3 Storage 5 | 1 1 1 1 1 . . . . . . Processor 3 | . . . . 1 2 . . . . . Hackware 3 | . . . . . . . . . . 3 Protection 5 | . . 1 1 . 1 1 . . 1 . Artifact . | . . . . . . . . . . . Weapon 20 | 2 1 8 . 3 2 1 . . 1 2 Energy Gun 5 | 1 . 3 . 1 . . . . . . Energy Cannon . | . . . . . . . . . . . Ballistic Gun 7 | 1 . 2 . 1 1 1 . . . 1 Ballistic Cannon 2 | . . 2 . . . . . . . . Launcher 2 | . . . . . 1 . . . 1 . Special Weapon 1 | . 1 . . . . . . . . . Impact Weapon 1 | . . . . 1 . . . . . . Slashing Weapon 2 | . . 1 . . . . . . . 1 Piercing Weapon . | . . . . . . . . . . . Special Melee Weapon . | . . . . . . . . . . . Unidentified Prototypes 1 | . . . . . 1 . . . . . Corrupted Parts 2 | . . . . . . . . . . 2 System Corruption 8 | . . . . . . . . . . 8 Parts Lost 39 | . . 6 . . 8 . . . 9 16 Power 4 | . . . . . 1 . . . 1 2 Propulsion 6 | . . 2 . . 1 . . . 1 2 Utility 18 | . . 1 . . 3 . . . 5 9 Weapon 11 | . . 3 . . 3 . . . 2 3 Highest Loss Streak 7 | . . 2 . . 4 . . . 6 7 To Critical Strikes 1 | . . . . . . . . . . 1 Average Backups 16 | 4 9 16 10 19 19 21 22 22 20 19 Power 1 | . 1 1 1 . . 1 1 1 1 1 Propulsion 3 | 2 4 7 . . 3 4 4 4 3 2 Utility 6 | . 2 3 6 10 8 10 10 10 8 7 Weapon 3 | . 1 3 1 5 3 3 4 4 3 3 Tool/Special . | . . . . . . . . . . . Unused Backups 33 | . 1 11 . 6 1 . . . . 14 Power 3 | . . 1 . 1 . . . . . 1 Propulsion 11 | . 1 7 . . . . . . . 3 Utility 10 | . . 1 . 3 1 . . . . 5 Weapon 4 | . . 2 . 2 . . . . . . Tool/Special 5 | . . . . . . . . . . 5 Average Slot Usage (%) 86 | . 99 95 98 80 81 81 86 86 56 56 Engine 2 | . 14 5 . . . . . . . . Core 7 | . . 6 10 10 10 9 13 13 6 6 Treads 24 | . 28 29 30 30 11 6 6 6 . . Wheel 1 | . . . . . 5 6 6 6 7 8 Device 8 | . 13 7 . . 12 25 26 26 20 23 Storage 10 | . 14 12 10 10 5 6 6 6 6 4 Processor 2 | . . . . 5 9 6 6 6 . . Protection 7 | . . 5 19 10 10 5 6 6 6 2 Energy Gun 10 | . 10 12 19 12 9 . . . . . Ballistic Gun 4 | . 14 4 . 2 5 12 13 13 4 . Ballistic Cannon 5 | . . 11 9 . . . . . . . Peak Build Rating 94 | 7 8 48 49 48 94 89 89 89 89 94 Average Rating 37 | 5 7 23 34 34 83 85 89 89 63 68 On Entrance 49 | . 7 8 47 30 48 69 89 89 89 69 Avg Prop Armor Cover (%) 7 | . . . . . 10 5 5 5 5 . Naked Turns 16 | . . . . . . . . . . 16 Heaviest Build 122 | 13 48 63 109 102 122 119 119 119 119 117 Greatest Support 60 | 40 40 60 60 60 50 20 20 20 28 28 Greatest Overweight (x) 32 | . 1 2 1 1 6 5 5 5 5 32 Average Overweight (x) 2 | . . . 1 1 5 4 5 5 4 3 Largest Inventory Capacity 25 | 8 20 20 25 25 25 25 25 25 25 25 Average Capacity 22 | 7 16 20 23 25 25 25 25 25 25 23 Most Carried 25 | 6 13 20 20 25 25 25 25 25 25 24 Average Carried 18 | 4 9 17 11 20 22 24 25 25 23 21 Final Capacity 25 | 8 20 20 25 25 25 25 25 25 25 5 Final Carried 25 | 6 13 20 15 25 24 25 25 25 21 4 Scrap Suit Usage (%) 4 | . . . . . 55 . . . 8 16 Parts Cannibalized 8 | . . . . . 2 . . . . 6 Class Distribution -------------------- 64% | Mutant 13% | Scrapper 11% | Tank 3% | Skirmisher 3% | Scavenger-Scrapper 3% | Derelict-Scrapper Dominant Class ---------------- Mutant | -10/Materials Mutant | -10/Subcaves Mutant | -8/Recycling Mutant | -8/Scraptown Scrapper | -6/Factory Scrapper | -6/Lower Caves Scavenger-Scrapper | -6/Lower Caves Scavenger-Scrapper | -6/Data Miner Scrapper | -5/Proximity Caves Derelict-Scrapper | -5/Factory Resources | -11 -10 -10 -8 -8 -6 -6 -6 -6 -5 -5 ----------- Run | Yrd Mat Sub Rec Scr Fac Low Low Dat Pro Fac Matter Collected 3140 | 286 141 1142 191 179 194 334 110 . 78 485 Remotely . | . . . . . . . . . . . Salvage Created 3079 | 200 257 626 147 . 615 265 . . 68 901 Parts 175 | 15 23 39 6 . 24 14 . . 5 49 Haulers Intercepted 1 | . . . . . . . . . . 1 Recyclers Shooed 1 | 1 . . . . . . . . . . Parts Field Recycled . | . . . . . . . . . . . Retrieved Matter . | . . . . . . . . . . . Parts Self-Destructed 37 | . . 22 . . . 11 . . 4 . Prevented . | . . . . . . . . . . . Parts Restored . | . . . . . . . . . . . Kills | -11 -10 -10 -8 -8 -6 -6 -6 -6 -5 -5 ------- Run | Yrd Mat Sub Rec Scr Fac Low Low Dat Pro Fac Combat Hostiles Destroyed 72 | . 10 19 1 . 14 4 . . 5 19 Melee 10 | . . 1 . . . . . . . 9 Guns 37 | . 10 11 1 . 11 4 . . . . Cannons 7 | . . 7 . . . . . . . . AOE 18 | . . . . . 3 . . . 5 10 Classes Destroyed 15 | 2 3 1 2 . 3 2 . . . 2 Worker 7 | . . . . . . . . . . 7 Builder 5 | . . . 1 . 1 . . . . 3 Tunneler 5 | 5 . . . . . . . . . . Hauler 1 | . . . . . . . . . . 1 Recycler 4 | 1 . . 2 . . . . . . 1 Watcher 1 | . 1 . . . . . . . . . Swarmer 29 | . 6 4 . . 3 . . . 4 12 Grunt 14 | . 4 3 . . 7 . . . . . Duelist 2 | . . . . . 1 . . . . 1 Sentry 3 | . . . 1 . . 1 . . . 1 Hunter 6 | . . . . . 2 1 . . . 3 Programmer 4 | . . . . . 1 1 . . . 2 Behemoth 2 | . . . . . . 1 . . 1 . Subdweller 12 | . . 12 . . . . . . . . Tinkerer 1 | . . . . . . 1 . . . . Best Kill Streak 7 | 4 5 3 2 . 6 1 . . 4 7 Combat Bots Only 6 | . 5 3 2 . 5 1 . . 4 6 Max Kills in Single Turn 7 | 1 2 1 1 . 4 1 . . 2 7 Gunslinging 1 | . 1 . . . . . . . . . Exploded 5 | . . . . . 3 . . . 2 5 Melee 1 | . . 1 . . . . . . . 1 Uniques/NPCs Destroyed . | . . . . . . . . . . . Combat | -11 -10 -10 -8 -8 -6 -6 -6 -6 -5 -5 -------- Run | Yrd Mat Sub Rec Scr Fac Low Low Dat Pro Fac Hostile Shots Fired 562 | . 51 84 7 . 140 53 . . 34 193 Missed 156 | . 15 34 2 . 36 17 . . 6 46 Hits 406 | . 36 50 5 . 104 36 . . 28 147 Projectile 406 | . 36 50 5 . 104 36 . . 28 147 AOE 2 | . . 2 . . . . . . . . Critical Strikes 18 | . 3 1 . . 6 1 . . 1 6 Damage Taken 7751 | . 347 856 72 . 1927 715 . . 726 3108 Core 1663 | . 72 106 14 . 164 99 . . 116 1092 Absorbed by Shields . | . . . . . . . . . . . Regen/Repaired (Parts) 45 | . . . . . 12 . . . . 33 Core Remaining (%) 59 | 100 . . . 23 . . . . 55 . Volleys Fired 312 | 17 32 141 5 . 69 27 . . 11 10 Largest 3 | 2 2 3 2 . 2 2 . . 2 1 Hottest 132 | 60 120 123 93 . 132 62 . . 77 45 Shots Fired 537 | 31 58 230 11 . 125 54 . . 18 10 Gun 382 | 31 51 101 6 . 125 54 . . 14 . Cannon 107 | . . 102 5 . . . . . . . Launcher 14 | . . . . . . . . . 4 10 Special 34 | . 7 27 . . . . . . . . Kinetic 315 | 17 27 128 5 . 70 54 . . 14 . Thermal 190 | 14 31 84 6 . 55 . . . . . Explosive 14 | . . . . . . . . . 4 10 Electromagnetic 18 | . . 18 . . . . . . . . Robot Hit Streak 20 | 5 7 20 4 . 10 7 . . 5 2 Robot Miss Streak 7 | 3 4 3 1 . 7 6 . . 3 2 Penetration Max . | . . . . . . . . . . . Secondary Targets 4 | . 2 . . . 2 . . . . . Max Gunslinging Chain 1 | . 1 . . . 1 . . . . . Shots Hit Robots 287 | 15 28 90 8 . 65 31 . . 8 42 Core Hits 164 | 10 19 36 2 . 33 13 . . 11 40 Critical Kills 1 | . . . . . 1 . . . . . Critical Parts Destroyed 2 | 1 . . . . . 1 . . . . Critical Strikes 28 | 1 . 4 2 . 12 2 . . . 7 Burn 11 | . . . . . 11 . . . . . Destroy 4 | 1 . . . . 1 2 . . . . Blast 6 | . . 4 2 . . . . . . . Sever 7 | . . . . . . . . . . 7 Melee Attacks 73 | . . 8 . . . . . . . 65 Impact . | . . . . . . . . . . . Slashing 73 | . . 8 . . . . . . . 65 Piercing . | . . . . . . . . . . . Sneak Attacks 9 | . . . . . . . . . . 9 Combat Hostiles . | . . . . . . . . . . . Follow-up Attacks 1 | . . . . . . . . . . 1 Damage Inflicted 9591 | 151 294 1463 239 . 2459 848 . . 848 3289 Guns 4288 | 147 290 933 128 . 1699 838 . . 253 . Cannons 581 | . . 520 61 . . . . . . . Explosions 2511 | . . . . . 760 . . . 595 1156 Melee 2066 | . . . . . . . . . . 2066 Ramming 145 | 4 4 10 50 . . 10 . . . 67 Kinetic 2922 | 49 112 787 61 . 822 838 . . 253 . Thermal 1816 | 98 178 535 128 . 877 . . . . . Explosive 2511 | . . . . . 760 . . . 595 1156 Electromagnetic 131 | . . 131 . . . . . . . . Impact . | . . . . . . . . . . . Slashing 2066 | . . . . . . . . . . 2066 Piercing . | . . . . . . . . . . . Highest Corruption 11 | . 2 2 2 . 7 7 7 7 7 11 Average Corruption 2 | . 1 2 2 . 2 7 7 7 7 2 Corruption Purged . | . . . . . . . . . . . Corruption Blocked . | . . . . . . . . . . . Effects 175 | . 13 83 14 . 5 16 10 3 16 15 Message Errors 49 | . 6 24 4 . 1 3 2 1 4 4 Matter Fused 49 | . 3 24 4 . 1 6 4 1 2 4 Heat Flow Errors 16 | . 1 8 1 . . 2 1 . 2 1 Energy Discharges 21 | . 1 10 2 . . 2 . . 3 3 Parts Fused 1 | . . . . . 1 . . . . . Data Loss (minor) 19 | . . 8 2 . . 1 2 1 2 3 Data Loss (major) 10 | . . 5 . . . 2 1 . 2 . Misfires 7 | . 1 3 1 . 2 . . . . . Alerts 2 | . . 1 . . . . . . 1 . Weapon Failures 1 | . 1 . . . . . . . . . Overload Shots . | . . . . . . . . . . . Overflow Damage 588 | . . . . . 16 . . . 60 512 Projectiles . | . . . . . . . . . . . Explosions 121 | . . . . . 16 . . . 60 45 Melee 467 | . . . . . . . . . . 467 Knockbacks 6 | . . 5 . . . 1 . . . . Impact 1 | . . . . . . 1 . . . . Kinetic 5 | . . 5 . . . . . . . . Secondary . | . . . . . . . . . . . Self-Inflicted Damage 614 | . . . . . 84 5 . . 8 517 Shots 18 | . . . . . 1 . . . 1 16 Rammed 8 | 1 1 1 3 . . 1 . . . 1 Targets Rammed 11 | 1 1 1 6 . . 1 . . . 1 Kicked . | . . . . . . . . . . . Crushed 3 | . . . 3 . . . . . . . Highest Temperature 418 | 40 268 227 258 . 418 46 76 . 196 63 Average Temperature 88 | 17 52 48 106 . 144 31 76 . 100 36 Received Heat Transfer 1047 | . 138 213 18 . 378 48 . . 99 153 Effects 3 | . 1 . . . 2 . . . . . Energy Bleed 1 | . 1 . . . . . . . . . Interference 2 | . . . . . 2 . . . . . Siege Activations . | . . . . . . . . . . . Martial Activations . | . . . . . . . . . . . Shielding Activations . | . . . . . . . . . . . Robots Disrupted . | . . . . . . . . . . . Combat Hostiles . | . . . . . . . . . . . Robots Corrupted . | . . . . . . . . . . . Combat Hostiles . | . . . . . . . . . . . Parts Fried 2 | . . . . . . . . . . 2 Impact Corruptions 2 | . . . . . . . . . . 2 Robots Melted . | . . . . . . . . . . . Combat Hostiles . | . . . . . . . . . . . Parts Melted 9 | . . 2 . . 7 . . . . . Heat Transferred 4025 | 225 400 650 150 . 2600 . . . . . Parts Sabotaged . | . . . . . . . . . . . Parts Stolen . | . . . . . . . . . . . Parts Stripped . | . . . . . . . . . . . Power Chain Reactions . | . . . . . . . . . . . Alert | -11 -10 -10 -8 -8 -6 -6 -6 -6 -5 -5 ------- Run | Yrd Mat Sub Rec Scr Fac Low Low Dat Pro Fac Maximum Alert Level 3 | . . . . . . . . . . 3 Low Security (%) 82 | 100 100 . 100 . 100 . . . . 25 Level 1 8 | . . . . . . . . . . 38 Level 2 4 | . . . . . . . . . . 21 Level 3 3 | . . . . . . . . . . 14 Level 4 . | . . . . . . . . . . . Level 5 . | . . . . . . . . . . . High Security . | . . . . . . . . . . . Max Security . | . . . . . . . . . . . Peak Influence 780 | 10 123 . 129 . 169 . . . . 780 Initial 108 | . 6 . 108 . . . . . . 8 Average 101 | 1 26 . 18 . 64 . . . . 334 Influence Increases 2876 | 30 327 385 191 . 467 110 . . 120 1246 Destroy 0b10 Robot/C 1280 | . 200 140 20 . 280 80 . . 100 460 Destroy 0b10 Robot/NC 125 | 30 5 . 15 . 5 . . . . 70 Destroy Leader 256 | . 42 20 . . 60 30 . . 20 84 Allied During Kill 28 | . . . . . . . . . . 28 Successful Hack 49 | . 28 . 5 . 16 . . . . . Select Force Hacks 150 | . . . 150 . . . . . . . Disable Machine 150 | . . . . . 75 . . . . 75 Destroy Structure 373 | . 7 . 1 . 31 . . . . 334 Lose Combat Pursuer 465 | . 45 225 . . . . . . . 195 Influence Decreases 2165 | 20 249 248 416 . 443 128 6 . 106 549 Entered New Map 182 | . 4 43 117 . . 10 2 . . 6 Time Decay 1628 | 20 245 185 299 . 308 118 4 . 86 363 Lost Part 280 | . . 20 . . 80 . . . 20 160 Lost Ally 20 | . . . . . . . . . . 20 Purge Threat 55 | . . . . . 55 . . . . . Squads Dispatched 12 | . 2 . . . 7 . . . . 3 Investigation 5 | . 2 . . . 2 . . . . 1 Extermination 4 | . . . . . 3 . . . . 1 Reinforcement 3 | . . . . . 2 . . . . 1 Assault . | . . . . . . . . . . . Garrison . | . . . . . . . . . . . Intercept . | . . . . . . . . . . . Searches Triggered . | . . . . . . . . . . . Data Miner Redirects 3 | . . . . . . . . . . 3 Construction Impeded 2 | . . . . . 1 . . . . 1 Haulers Reinforced . | . . . . . . . . . . . Active Scanning Responses . | . . . . . . . . . . . Cargo Convoy Interrupts 2 | . . . . . 1 . . . . 1 Stealth | -11 -10 -10 -8 -8 -6 -6 -6 -6 -5 -5 --------- Run | Yrd Mat Sub Rec Scr Fac Low Low Dat Pro Fac Distress Signals 5 | . 1 . . . 2 . . . . 2 Communications Jammed . | . . . . . . . . . . . Distress Signals . | . . . . . . . . . . . Times Spotted 121 | . 17 31 1 . 20 4 . . 4 44 Peak Tracking Total 8 | . 5 3 1 . 6 1 . . 4 8 Tactical Retreats 14 | . 3 5 . . . . . . . 6 Traps | -11 -10 -10 -8 -8 -6 -6 -6 -6 -5 -5 ------- Run | Yrd Mat Sub Rec Scr Fac Low Low Dat Pro Fac Traps Triggered 6 | . 4 . . . 2 . . . . . Indirectly . | . . . . . . . . . . . Trap Hack Attempts . | . . . . . . . . . . . Triggered . | . . . . . . . . . . . Disarmed . | . . . . . . . . . . . Reprogrammed . | . . . . . . . . . . . Reused . | . . . . . . . . . . . Traps Extracted . | . . . . . . . . . . . Installed . | . . . . . . . . . . . Triggered . | . . . . . . . . . . . Objects Rigged 5 | . . . . . . . . . . 5 Exploded 1 | . . . . . . . . . . 1 Machines | -11 -10 -10 -8 -8 -6 -6 -6 -6 -5 -5 ---------- Run | Yrd Mat Sub Rec Scr Fac Low Low Dat Pro Fac Machines Disabled 12 | . . 1 . . 5 1 . . . 5 Max in Single Turn 3 | . . 1 . . 3 1 . . . 1 Machines Repaired . | . . . . . . . . . . . Machines Dismantled . | . . . . . . . . . . . Machines Sabotaged . | . . . . . . . . . . . Overloaded Fab Kills . | . . . . . . . . . . . Hacking | -11 -10 -10 -8 -8 -6 -6 -6 -6 -5 -5 --------- Run | Yrd Mat Sub Rec Scr Fac Low Low Dat Pro Fac Machines Accessed 32 | . 5 4 11 1 4 1 . 4 . 2 Terminals 14 | . 5 . 6 . 2 . . . . 1 Fabricators 2 | . . . . . 1 . . . . 1 Repair Stations . | . . . . . . . . . . . Recycling Units 6 | . . . 5 . 1 . . . . . Scanalyzers . | . . . . . . . . . . . Garrison Access . | . . . . . . . . . . . Total Hacks 85 | . 18 8 21 1 5 1 . 26 . 5 Successful 63 | . 10 8 11 1 4 1 . 26 . 2 Failed 22 | . 8 . 10 . 1 . . . . 3 Catastrophic 4 | . 2 . 1 . 1 . . . . . Database Lockouts . | . . . . . . . . . . . Manual 35 | . 13 . 18 . 2 . . . . 2 Terminals 38 | . 18 . 16 . 2 . . . . 2 Fabricators 5 | . . . . . 2 . . . . 3 Repair Stations . | . . . . . . . . . . . Recycling Units 6 | . . . 5 . 1 . . . . . Scanalyzers . | . . . . . . . . . . . Garrison Access . | . . . . . . . . . . . Terminal Hacks 41 | . 4 8 . 1 1 1 . 26 . . Record 16 | . . 5 . . . . . 11 . . Part Schematic 9 | . . . . . . . . 9 . . Robot Schematic 3 | . . . . . . . . 3 . . Robot Analysis 3 | . 3 . . . . . . . . . Prototype ID Bank 3 | . . . . . . . . 3 . . Open Door 2 | . . 1 . . . 1 . . . . Unreport Threat 1 | . . . . . 1 . . . . . Zone Layout 1 | . 1 . . . . . . . . . Proto ID Catalog 2 | . . 1 . 1 . . . . . . Release Object 1 | . . 1 . . . . . . . . Fabricator Hacks 4 | . . . . . 2 . . . . 2 Load Schematic 2 | . . . . . 1 . . . . 1 Build 2 | . . . . . 1 . . . . 1 Repair Station Hacks . | . . . . . . . . . . . Recycling Unit Hacks . | . . . . . . . . . . . Scanalyzer . | . . . . . . . . . . . Garrison Access Hacks . | . . . . . . . . . . . Unauthorized Hacks 18 | . 6 . 11 . 1 . . . . . Terminals 12 | . 6 . 6 . . . . . . . Botnet 3 | . 2 . 1 . . . . . . . Skim 9 | . 4 . 5 . . . . . . . Fabricators . | . . . . . . . . . . . Repair Stations . | . . . . . . . . . . . Recycling Units 6 | . . . 5 . 1 . . . . . Tunnel 5 | . . . 5 . . . . . . . Fedlink 1 | . . . . . 1 . . . . . Scanalyzers . | . . . . . . . . . . . Garrison Access . | . . . . . . . . . . . Data Cores Recovered . | . . . . . . . . . . . Used . | . . . . . . . . . . . Hacking Detections 16 | . 5 . 6 . 3 . . . . 2 Full Trace Events 2 | . . . . . 1 . . . . 1 Feedback Events . | . . . . . . . . . . . Feedback Blocked . | . . . . . . . . . . . Robot Schematics Acquired 3 | . . . . . . . . 3 . . Robots Built . | . . . . . . . . . . . Authchips . | . . . . . . . . . . . Time . | . . . . . . . . . . . Total Robot Build Rating . | . . . . . . . . . . . Part Schematics Acquired 25 | . . . . 10 6 . . 9 . . Parts Built 2 | . . . . . 1 . . . . 1 Authchips . | . . . . . . . . . . . Time 262 | . . . . . 93 . . . . 169 Total Part Build Rating 13 | . . . . . 7 . . . . 6 Part Studies Acquired . | . . . . . . . . . . . Parts Repaired . | . . . . . . . . . . . Time . | . . . . . . . . . . . Parts Recycled . | . . . . . . . . . . . Recycled Matter . | . . . . . . . . . . . Retrieved Matter . | . . . . . . . . . . . Retrieved Components . | . . . . . . . . . . . Parts Scanalyzed . | . . . . . . . . . . . Part Schematics Acquired . | . . . . . . . . . . . Parts Damaged . | . . . . . . . . . . . Bothacking | -11 -10 -10 -8 -8 -6 -6 -6 -6 -5 -5 ------------ Run | Yrd Mat Sub Rec Scr Fac Low Low Dat Pro Fac Used RIF Installer . | . . . . . . . . . . . Robots Hacked . | . . . . . . . . . . . Non-combat . | . . . . . . . . . . . Combat . | . . . . . . . . . . . Robot Hacks Applied . | . . . . . . . . . . . Relay Couplers Released . | . . . . . . . . . . . Fabnet Peak Effective % . | . . . . . . . . . . . Robots Rewired . | . . . . . . . . . . . Allies Hacked . | . . . . . . . . . . . Hacks Repelled . | . . . . . . . . . . . Allies | -11 -10 -10 -8 -8 -6 -6 -6 -6 -5 -5 -------- Run | Yrd Mat Sub Rec Scr Fac Low Low Dat Pro Fac Total Allies 1 | . . . . . . . . . . 1 Largest Group 1 | . . . . . . . . . . 1 Highest-Rated Group 34 | . . . . . . . . . . 34 Highest-Rated Ally 34 | . . . . . . . . . . 34 Total Orders 5 | . . . . . . . . . . 5 RETURN 5 | . . . . . . . . . . 5 Ally Attacks 66 | . . . . . . . . . . 66 Total Damage 1298 | . . . . . . . . . . 1298 Kills 6 | . . . . . . . . . . 6 Allies Corrupted . | . . . . . . . . . . . Allies Melted . | . . . . . . . . . . . Intel | -11 -10 -10 -8 -8 -6 -6 -6 -6 -5 -5 ------- Run | Yrd Mat Sub Rec Scr Fac Low Low Dat Pro Fac Active Infowar (turns) 2874 | 24 1096 1754 . . . . . . . . Optics 691 | . . 691 . . . . . . . . Seismic 2183 | 24 1096 1063 . . . . . . . . Robot Analysis Total 3 | . 3 . . . . . . . . . Derelict Logs Recovered 6 | . . 1 . 2 . 1 1 . 1 . Drone Launches 11 | . . . . . . . . . . 11 Drone Recoveries 9 | . . . . . . . . . . 9 Exploration | -11 -10 -10 -8 -8 -6 -6 -6 -6 -5 -5 ------------- Run | Yrd Mat Sub Rec Scr Fac Low Low Dat Pro Fac Turns Passed 18448 | 218 1116 6916 1757 4541 1018 707 269 104 566 1236 Spaces Moved 8471 | 99 455 2653 598 1872 670 526 225 87 464 822 Core 42 | 2 . . . . . . . . . 40 Treads 5680 | 97 455 2653 598 1872 5 . . . . . Legs . | . . . . . . . . . . . Wheels 2683 | . . . . . 665 526 225 87 464 716 Hover 66 | . . . . . . . . . . 66 Flight . | . . . . . . . . . . . Fastest Speed 50 | 50 160 160 240 240 110 110 120 120 100 50 Average Speed 193 | 157 211 227 240 240 125 119 120 120 114 119 Slowest Speed 1650 | 160 240 320 240 240 320 120 120 120 120 1650 Overloaded Moves . | . . . . . . . . . . . Propulsion Burnouts . | . . . . . . . . . . . Robots Hopped . | . . . . . . . . . . . Potential Cave-ins 9 | . . . . . . . . . . 9 Cave-ins Triggered 2 | . . . . . . . . . . 2 Exploration Rate (%) 57 | 7 72 98 94 86 15 60 45 70 65 23 Regions Visited 10 Branch Regions 7 Pre-discovered Areas 11 | . . 1 7 1 . 1 . 1 . . Known Exits Taken 5 | . . . . . 1 1 1 1 1 . Unknown Exits Taken 5 | 1 1 1 1 1 . . . . . . Scrap Searched 17 | . . 5 . 7 . 2 2 . 1 . Spaces Dug 68 | . 7 4 . . 3 . . . . 54 Terrain Destroyed 296 | . 7 6 1 . 32 12 . . 52 186 Melee 7 | . . 2 . . . . . . . 5 Projectile 39 | . 7 4 1 . 15 12 . . . . AOE 250 | . . . . . 17 . . . 52 181 Terrain Rammed . | . . . . . . . . . . . Walls Destroyed . | . . . . . . . . . . . Machines Disabled . | . . . . . . . . . . . Actions | -11 -10 -10 -8 -8 -6 -6 -6 -6 -5 -5 --------- Run | Yrd Mat Sub Rec Scr Fac Low Low Dat Pro Fac Total 9913 | 129 540 3267 903 1928 789 566 224 86 483 998 Wait 831 | . 39 402 278 15 19 6 . . . 72 Move 8461 | 98 454 2653 597 1871 669 525 224 86 463 821 Hop . | . . . . . . . . . . . Pick Up 69 | 6 7 17 7 18 8 1 . . . 5 Fast Attach 36 | 7 . 4 3 3 6 4 . . 2 7 Attach 32 | . 1 9 . 4 6 . . . 5 7 Detach 16 | . 1 1 2 5 2 . . . 2 3 Swap 23 | . 4 13 1 . 2 1 . . . 2 Drop 45 | . 1 19 4 12 8 1 . . . . Fire 312 | 17 32 141 5 . 69 27 . . 11 10 Melee 72 | . . 8 . . . . . . . 64 Ram 2 | . . . . . . 1 . . . 1 Kick . | . . . . . . . . . . . Crush 8 | 1 1 . 6 . . . . . . . Escape Stasis 1 | . . . . . . . . . . 1 Rewire . | . . . . . . . . . . . Trap 5 | . . . . . . . . . . 5 Miscellaneous . | . . . . . . . . . . . Route ------- -11/Scrapyard -10/Materials (discovered 4 exits: [*Mat x2] / [*Min] / *Sub) -10/Subcaves (discovered 3 exits: [*Mat x2] / *Rec) -8/Recycling (discovered 2 exits: *Fac / *Scr) -8/Scraptown (discovered 2 exits: *Fac x2) -6/Factory (discovered 3 exits: Fac / *Low x2) -6/Lower Caves -6/Lower Caves -6/Data Miner -5/Proximity Caves -5/Factory History --------- Turn | Location | Event 18 | -11/Scrapyard | Discovered new exit (range 16) 219 | -11/Scrapyard | Entered Materials 317 | -10/Materials | Build established: Mutant 322 | -10/Materials | Discovered new exit (range 16) 734 | -10/Materials | Discovered new exit (range 7) 810 | -10/Materials | Discovered new exit (range 14) 1320 | -10/Materials | Discovered new exit (range 6) 1335 | -10/Materials | Entered Subcaves 1336 | -10/Subcaves | Approached by a straggling Scientist 2199 | -10/Subcaves | Shifting Twisted Machinery released Spk. Treads 2310 | -10/Subcaves | A swath of the cavern ceiling suddenly collapsed 2500 | -10/Subcaves | Shifting Twisted Machinery released Shrapnel Trap 2538 | -10/Subcaves | Shifting Twisted Machinery released Sub. Laser 2987 | -10/Subcaves | Discovered new exit (range 8) 3199 | -10/Subcaves | Core integrity fell below 50% 3669 | -10/Subcaves | Discovered new exit (range 14) 3795 | -10/Subcaves | Learned Materials trap positions 3796 | -10/Subcaves | Visited 4L-MR0's lab 3824 | -10/Subcaves | Found Meta Core 3825 | -10/Subcaves | Attached Meta Core, gained temporary slots: Propulsion, Utility, Weapon 4114 | -10/Subcaves | Build established: Skirmisher 4324 | -10/Subcaves | Discovered new exit (range 14) 4350 | -10/Subcaves | Shifting Twisted Machinery released Sub. Machine Gun 4823 | -10/Subcaves | Build established: Tank 6325 | -10/Subcaves | Visited Clippyterm 6333 | -10/Subcaves | Learned location of Section 7 (-2) 7032 | -10/Subcaves | Build established: Mutant 7862 | -10/Subcaves | Found SUBCON Basin 8251 | -10/Subcaves | Entered Recycling 8393 | -8/Recycling | Scanned before Scraplab entrance 8428 | -8/Recycling | Entered Scraplab 8447 | -8/Recycling | Discovered new exit (range 4) 8876 | -8/Recycling | Discovered new exit (range 16) 9536 | -8/Recycling | Learned location of Storage (-8) 9584 | -8/Recycling | Learned location of Zion (-7) 9621 | -8/Recycling | Learned Factory fabricator intel 9647 | -8/Recycling | Learned 4 Factory zone layouts 9664 | -8/Recycling | Learned Storage stockpile data 9672 | -8/Recycling | Learned Storage security intel 9721 | -8/Recycling | Learned 4 Factory zone layouts 9761 | -8/Recycling | Learned location of 1 exit from Recycling 10008 | -8/Recycling | Entered Scraptown 10008 | -8/Scraptown | System corruption cleaned by C-Scrubber 10514 | -8/Scraptown | Discovered new exit (range 13) 10626 | -8/Scraptown | Scanned Subdweller tech in exchange for log data 10636 | -8/Scraptown | Learned location of 1 exit from Factory 10809 | -8/Scraptown | Visited SPCMW 10926 | -8/Scraptown | Visited Symbiants 11296 | -8/Scraptown | Visited Cave Peace 11320 | -8/Scraptown | Visited TADAMA 11349 | -8/Scraptown | Visited Comm Corps 11402 | -8/Scraptown | Visited UFD Registry 11402 | -8/Scraptown | Registered with UFD as "Flakshaft" 11481 | -8/Scraptown | Visited Modified Component R&D 11598 | -8/Scraptown | Visited Research Penetration Think Tank 11658 | -8/Scraptown | Visited LU-1G1's Boring Crew 11680 | -8/Scraptown | Visited DA-N13 Charitable Foundation 11702 | -8/Scraptown | Found DCF Scrap (29 items) 11758 | -8/Scraptown | Visited Derelict Rescue Squad 11790 | -8/Scraptown | Visited Botcube Research 11818 | -8/Scraptown | Visited Science Guys 11862 | -8/Scraptown | Visited Junk Repository 11926 | -8/Scraptown | Visited Curators Association 12369 | -8/Scraptown | Visited Shadow of the Wyrm 12390 | -8/Scraptown | Visited Spacefarers 12409 | -8/Scraptown | Tech Extrapolator generated special schematic: Machine Rigger 12637 | -8/Scraptown | Tech Extrapolator generated special schematic: Deep Structural Scanner 13359 | -8/Scraptown | Visited Scrap Suit Storage 13378 | -8/Scraptown | Found Scrap Suit 13383 | -8/Scraptown | Found Scrap Suit 13507 | -8/Scraptown | Found Botcube 13561 | -8/Scraptown | Found DRS Beacon 13907 | -8/Scraptown | Tech Extrapolator generated special schematic: Vmp. Humpback 14429 | -8/Scraptown | Met Optimus 14429 | -8/Scraptown | Accepted into 0bPrime 14539 | -8/Scraptown | Discovered new exit (range 5) 14549 | -8/Scraptown | Entered Factory 14549 | -6/Factory | Evolved 8 slots: Power x1, Propulsion x1, Utility x6 14550 | -6/Factory | Identified exit to Lower Caves 14551 | -6/Factory | Identified exit to Factory 14553 | -6/Factory | Loaded intel: 6 fabricator locations 14783 | -6/Factory | Loaded intel: 8 recycling unit locations 14842 | -6/Factory | Build established: Scrapper 15081 | -6/Factory | Fabricated Machine Rigger? 15110 | -6/Factory | Found Prototype Launcher 15110 | -6/Factory | Identified Rocket Array 15498 | -6/Factory | Lost 4 parts (1p2u1w) 15503 | -6/Factory | Cargo convoy interrupted 15567 | -6/Factory | Entered Lower Caves 15593 | -6/Lower Caves | Lost 3 parts (1n1u1w) 15751 | -6/Lower Caves | Attracted the attention of an 0b10 checkpoint 15768 | -6/Lower Caves | Encountered a Warlord checkpoint 15874 | -6/Lower Caves | Spotted B-75 Beast 16051 | -6/Lower Caves | Destroyed B-75 Beast 16260 | -6/Lower Caves | Discovered new exit (range 7) 16268 | -6/Lower Caves | Identified exit to Lower Caves 16274 | -6/Lower Caves | Entered another Lower Caves area 16368 | -6/Lower Caves | Build established: Scavenger-Scrapper 16499 | -6/Lower Caves | Learned Factory terminal intel 16537 | -6/Lower Caves | Discovered new exit (range 5) 16541 | -6/Lower Caves | Identified exit to Data Miner 16543 | -6/Lower Caves | Entered Data Miner 16543 | -6/Data Miner | Discovered new exit (range 6) 16566 | -6/Data Miner | Met Data Miner 16599 | -6/Data Miner | Acquired the access code to Warlord's prototype stash 16608 | -6/Data Miner | Received God Mode back door access code from Data Miner 16641 | -6/Data Miner | Identified exit to Proximity Caves 16647 | -6/Data Miner | Entered Proximity Caves 16655 | -5/Proximity Caves | Spotted B-75 Beast 16678 | -5/Proximity Caves | Destroyed B-75 Beast 16706 | -5/Proximity Caves | Lost 6 parts (1p1n3u1w) 16968 | -5/Proximity Caves | Build established: Scrapper 17111 | -5/Proximity Caves | Lost 3 parts (2u1w) 17205 | -5/Proximity Caves | Attracted the attention of an 0b10 checkpoint 17213 | -5/Proximity Caves | Entered Factory 17213 | -5/Factory | Evolved 2 slots: Propulsion x1, Utility x1 17214 | -5/Factory | Loaded intel: 26 terminal locations 17269 | -5/Factory | Incoming investigation squad redirected 17410 | -5/Factory | Fabricated Combat Drone Bay? 17425 | -5/Factory | Build established: Derelict-Scrapper 17990 | -5/Factory | Build established: Scrapper 18067 | -5/Factory | Cargo convoy interrupted 18081 | -5/Factory | Incoming assault squad redirected 18091 | -5/Factory | Incoming assault squad redirected 18217 | -5/Factory | Lost 4 parts (1p2n1u) 18348 | -5/Factory | Core integrity fell below 50% 18370 | -5/Factory | Crushed by falling debris 18386 | -5/Factory | Core integrity fell below 20% 18386 | -5/Factory | Crushed by falling debris 18387 | -5/Factory | Botcube activated 18393 | -5/Factory | Botcube completed mutation into legged form, armed with 1 gun. 18413 | -5/Factory | Lost 7 parts (1p5u1w) 18435 | -5/Factory | System corruption reached 10% 18449 | -5/Factory | Destroyed self via exploding Power Conduit Last Messages --------------- 18404_ Slug penetrates Earth. 18412_ The unstable cave ceiling collapses. 18414_ Acquired Power Sword. 18425_ Sneak attack on R-10 Processor. 18425_ Destroyed Com. Wheel. 18425_ Sneak attack on R-10 Processor. 18425_ Mak. Axe follow-up attack on R-10 Processor. 18425_ R-10 Processor destroyed. 18427_ System corrupted: Energy discharge (-15). 18428_ Acquired 110 matter. 18431_ Acquired Corrupted Authchip [Propulsion]. 18431_ Integrated Corrupted Authchip [Propulsion] (+4). 18434_ Acquired Corrupted Authchip [Propulsion]. 18434_ Integrated Corrupted Authchip [Propulsion] (+4). 18434_ Complication: Energy sink damages Corrupted Authchip [Propulsion] (-4). 18449_ Power Conduit explodes. Map ----- +----------------------------------------------------+ | ?????????????????????????????????????????????????? | | ?????????????????????????????????????????????????? | | ? ??????????????????????????????????????????????? | | # ???????????????????????????????????????? | | # ?????????????????????????????????????? | | # #???????????????????????????????????? | | # #???????????????????????????????????? | | + #???????????????????????????????????? | | # #???????????????????????????????????? | | # #???????????????????????????????????? | | + #??????????? ?????????????????????? | | # #??????????? ?????????????????????? | | # #??????????? ?????????????????????? | | # #?????????## ?????????????????????? | | ## #????????? ?????????????????????? | | ## #???? ??? ? ???????????????????? | | ## # " " #??????????????????? | | ## # " " +??????????????????? | | + # " " #??????????????????? | | ########## " " #??????????????????? | | #????????# " " ###????????????????? | | # # ###?????# " " #????????????????? | | #?????# " " ########?????????? | | #?????# " " ????????? | | #?????# " " ????????? | | #?????# ""T"" @ ????????? | | #?????# """"" ????????? | | #?????# ???????? | | #?????# ???????? | | ############### m ???????? | | # ] # #######+############?????????? | | # # ## #??????????????? | | # + ## #??????????????? | | !#= # ## """" """" #??????????????? | | |#! [ #= ## """" """" #??????????????? | | ### ###########= ## """" """" #??????????????? | | !##!########## |= ## """" """" #??????????????? | | &""" " #! ## #??????????????? | | "T " """"" #*! + """" """????????????????? | | """"" + ## """" """????????????????? | | ] """ # ## """" R?????????????????? | | # # ## """" "??????????????????? | | #! ! [ + ## ??????????????????? | | #### ##########+#############??????????????????? | | ???#####?????????????????????????????????????????? | | ?????????????????????????????????????????????????? | | ?????????????????????????????????????????????????? | | ?????????????????????????????????????????????????? | | ?????????????????????????????????????????????????? | | ?????????????????????????????????????????????????? | +----------------------------------------------------+ Best States ------------- Heat Dissipation 102 Coolant Potential 65 Energy Generation 30 Energy Capacity 250 Matter Stores 388 Matter Capacity 400 Sight Range 21 Terrain Scan Density 10 Armor Coverage 325 Weapon Cycling 20 Melee Speed Boost 20 Evasion (%) 53 Targeting Accuracy 6 Recoil Reduction 3 Offensive Hacking 12 Authchip Count 5 Item Schematics ----------------- Spk. Treads | -8/Scraptown | Extrapolated Tactical Coordination Suite | -8/Scraptown | Extrapolated Mak. Light Armor Plating | -8/Scraptown | Extrapolated Machine Rigger | -8/Scraptown | Extrapolated Mak. Coolant Network | -8/Scraptown | Extrapolated Deep Structural Scanner | -8/Scraptown | Extrapolated Battle Cannon | -8/Scraptown | Extrapolated Mak. Leg | -8/Scraptown | Extrapolated Lgt. Humpback | -8/Scraptown | Extrapolated Vmp. Humpback | -8/Scraptown | Extrapolated Spk. Medium Treads | -6/Factory | Extrapolated 0b10 Decoder Chip [Looter] | -6/Factory | Extrapolated Mak. Hacking Suite | -6/Factory | Extrapolated Mak. Medium Armor Plating | -6/Factory | Extrapolated Mak. Ablative Armor | -6/Factory | Extrapolated Mak. Spear | -6/Factory | Extrapolated Combat Drone Bay | -6/Data Miner | Free Lgt. Regenerative Plating | -6/Data Miner | Free Enh. Flexi-carbon Leg | -6/Data Miner | Free Prc. Matter Filter | -6/Data Miner | Free Tesla Bomb Launcher | -6/Data Miner | Free Adv. Surge Thruster | -6/Data Miner | Free Imp. Remote Force Field | -6/Data Miner | Free Dispersion Rifle | -6/Data Miner | Free Gamma Bomb Array | -6/Data Miner | Free Robot Schematics ------------------ L-41 Fighter | -6/Data Miner | Free S-27 Virus | -6/Data Miner | Free B-48 Gladiator | -6/Data Miner | Free Fabricated ------------ Machine Rigger | x1 | -6/Factory Combat Drone Bay | x1 | -5/Factory Repaired ---------- Nothing Studied --------- None Alien Tech Used ----------------- None Achievements -------------- None Challenges ------------ None Game ------ Seed PlatingSmartbombPenetrator Manual? 0 Play Time 00:58:28 Cumulative 210.1 hours Start 2025.12.07 @ 13:38:07 End 2025.12.07 @ 14:41:42 Sessions 3 Manual Loads 0 Difficulty Rogue Special Mode None Game No. 198 Rogue 198 Adventurer 0 Explorer 0 Win Type - Total 10 Types 7/0/2/0/0/0/0/0/0/1 Lore% 84 Gallery% 74 Achievement% 59 Wizard Run 0 Options --------- Layout 1 ASCII 0 Keyboard 1 Movement Arrows Keybinds 0 Fullscreen 1 Font 24/Smallcaps Map View 50x40 Zoom Use 0% Tactical HUD 1 Map Filters NONE Filters NONE Steam 1 RUN: 2c14fc33-5566-4b24-9464-e373eb3fadb0